bitfinex-derivatives/quotes_BTCF0:USTF0_20251011
["timestamp","ask_amount","ask_price","bid_price","bid_amount"]
[1760157346872,0.52725801,112000.0,111990.0,0.03426]
[1760157347073,0.54940801,112000.0,111990.0,0.03426]
[1760157348068,0.43807061,112000.0,111990.0,0.03426]
[1760157348270,0.43807061,112000.0,111990.0,0.8842553]
[1760157349273,0.02394884,112000.0,111990.0,0.79506]
[1760157349479,0.52725801,112000.0,111990.0,0.03426]
[1760157351177,0.41412177,112020.0,112010.0,0.02858]
[1760157351374,0.53883327,112020.0,112010.0,0.02131]
[1760157351876,0.53883327,112020.0,112010.0,0.42858]
[1760157351877,0.41412177,112020.0,112010.0,0.42858]
[1760157352068,0.48183233,112030.0,112010.0,0.42858]
[1760157352273,0.49448503,112040.0,112020.0,0.39497]
[1760157352577,0.50328527,112030.0,112020.0,0.39497]
[1760157353072,0.52526527,112030.0,112020.0,0.38211]
[1760157353277,0.89962527,112030.0,112020.0,0.02131]
[1760157353477,0.0891759,112020.0,112000.0,0.03417]
[1760157353780,0.51736883,112030.0,112020.0,0.02131]
[1760157353980,0.51836883,112030.0,112020.0,0.02131]
[1760157354183,0.51936883,112030.0,112020.0,0.02131]
[1760157354479,0.51936883,112030.0,112000.0,0.39497]
[1760157354480,0.0891794,112010.0,112000.0,0.39497]
[1760157354674,0.50330117,112010.0,112000.0,0.39497]
[1760157354874,0.86410117,112010.0,112000.0,0.03417]
[1760157355077,0.41412177,112010.0,112000.0,0.4841574]
[1760157355277,0.41412177,112010.0,112000.0,0.8841574]
[1760157355472,0.4499724,112020.0,112010.0,0.03417]
[1760157355473,0.77492177,112020.0,112010.0,0.03417]
[1760157355673,0.41412177,112020.0,112010.0,0.4841494]
[1760157355874,0.41412177,112020.0,112010.0,0.8841494]
[1760157356078,0.50329327,112020.0,112010.0,0.43417]
[1760157356272,0.41412177,112020.0,112010.0,0.43417]
[1760157356585,0.52527327,112020.0,112010.0,0.43417]
[1760157356785,0.53883327,112020.0,112010.0,0.02131]
[1760157357085,0.89963327,112020.0,112010.0,0.02131]
[1760157357286,0.0891874,112000.0,111990.0,0.03417]
[1760157357487,0.86410917,112000.0,111990.0,0.03417]
[1760157357679,0.88608917,112000.0,111990.0,0.03417]
[1760157358280,0.77492177,112000.0,111990.0,0.03417]
[1760157358785,0.41412177,112010.0,112000.0,0.1233547]
[1760157358983,0.41412177,112010.0,112000.0,0.4841547]
[1760157359488,0.41412177,112010.0,112000.0,0.39497]
[1760157360392,0.41412177,112010.0,112000.0,0.4841574]
[1760157360590,0.50330117,112010.0,112000.0,0.39497]
[1760157360794,0.50330117,112010.0,112000.0,0.03417]
[1760157361092,0.41412177,112010.0,112000.0,0.5233574]
[1760157361293,0.3608,112020.0,112010.0,0.03417]
[1760157361489,0.86409327,112020.0,112010.0,0.03417]
[1760157362194,0.88607327,112020.0,112010.0,0.03417]
[1760157363190,0.90996265,112020.0,112010.0,0.02131]
[1760157363394,0.1247264,112010.0,112000.0,0.02131]
[1760157363594,0.89964817,112010.0,112000.0,0.02131]
[1760157364196,0.9233985,112010.0,112000.0,0.02131]
[1760157365800,0.1111754,111990.0,111980.0,0.02858]
[1760157365995,0.67922177,112000.0,111990.0,0.03417]
[1760157366404,0.80394917,112000.0,111990.0,0.02131]
[1760157366702,0.80394917,112000.0,111990.0,0.03417]
[1760157366703,0.67922177,112000.0,111990.0,0.03417]
[1760157366903,0.76840917,112000.0,111990.0,0.03417]
[1760157367303,0.79038917,112000.0,111990.0,0.03417]
[1760157367600,0.72910141,112000.0,111990.0,0.03417]
[1760157368298,0.64173684,112000.0,111990.0,0.03417]
[1760157368603,1.11370424,112000.0,111990.0,0.03417]
[1760157368801,1.12726424,112000.0,111990.0,0.02131]
[1760157369398,0.1111833,111980.0,111970.0,0.03417]
[1760157369592,0.1111833,111980.0,111970.0,0.02131]
[1760157369593,0.47757731,111980.0,111970.0,0.02131]
[1760157369798,0.47757731,111980.0,111960.0,0.02131]
[1760157369799,0.1247513,111970.0,111960.0,0.02131]
[1760157370000,0.4855513,111970.0,111960.0,0.02131]
[1760157372294,0.4855513,111970.0,111960.0,0.02231]
[1760157372493,0.4855513,111970.0,111960.0,0.001]
[1760157373204,0.4855513,111970.0,111960.0,0.02231]
[1760157373898,0.0892112,111970.0,111960.0,0.02958]
[1760157374202,0.1111912,111970.0,111960.0,0.02958]
[1760157375000,0.1111912,111970.0,111960.0,0.02858]
[1760157375503,0.1247512,111970.0,111960.0,0.02131]
[1760157377905,0.37481401,111970.0,111960.0,0.02858]
[1760157378207,0.35283401,111970.0,111960.0,0.4785992]
[1760157378400,0.35283401,111970.0,111960.0,0.38938]
[1760157379201,0.35283401,111970.0,111960.0,0.42858]
[1760157379397,0.37481401,111970.0,111960.0,0.42858]
[1760157379806,0.39880456,111970.0,111960.0,0.42858]
[1760157380003,0.39880456,111970.0,111960.0,0.02858]
[1760157380208,0.50157576,111970.0,111960.0,0.02131]
[1760157380408,0.47758521,111970.0,111960.0,0.02131]
[1760157380602,0.47758521,111970.0,111960.0,0.02858]
[1760157381008,0.47758521,111970.0,111960.0,0.02131]
[1760157381499,0.38837401,111970.0,111960.0,0.02131]
[1760157382107,0.1249792,111960.0,111950.0,0.0212]
[1760157382305,0.4857792,111960.0,111950.0,0.0212]
[1760157382708,0.12499,111950.0,111940.0,0.0212]
[1760157382909,0.83862401,111950.0,111940.0,0.0212]
[1760157383112,0.83862401,111950.0,111930.0,0.01295989]
[1760157383113,0.1249952,111940.0,111930.0,9.989e-05]
[1760157383414,0.86253696,111940.0,111930.0,9.989e-05]
[1760157383711,0.42046775,111940.0,111930.0,0.02129989]
[1760157383913,0.50173696,111940.0,111930.0,0.02129989]
[1760157384114,0.37674176,111940.0,111930.0,0.02864989]
[1760157384315,0.50173696,111940.0,111930.0,0.02129989]
[1760157385314,0.90173696,111940.0,111930.0,9.989e-05]
[1760157385512,0.54890295,111940.0,111930.0,0.02129989]
[1760157385712,0.90173696,111940.0,111930.0,0.02129989]
[1760157386616,0.90173696,111940.0,111930.0,9.989e-05]
[1760157387617,1.26253696,111940.0,111930.0,9.989e-05]
[1760157388214,0.0892591,111910.0,111890.0,0.3608]
[1760157388413,0.44209311,111910.0,111890.0,0.4500737]
[1760157388709,0.44209311,111910.0,111890.0,0.3608]
[1760157389211,6.906e-05,111900.0,111890.0,0.3608]
[1760157389617,6.906e-05,111900.0,111890.0,0.4500751]
[1760157390220,6.906e-05,111900.0,111890.0,0.8500751]
[1760157390618,6.906e-05,111900.0,111890.0,0.3608]
[1760157391116,6.906e-05,111900.0,111890.0,0.4500751]
[1760157391319,6.906e-05,111900.0,111890.0,0.8500751]
[1760157392622,6.906e-05,111900.0,111890.0,0.4500751]
[1760157393321,6.906e-05,111900.0,111890.0,0.8500751]
[1760157394025,6.906e-05,111900.0,111890.0,0.4500751]
[1760157394219,6.906e-05,111900.0,111890.0,0.8510751]
[1760157395224,6.906e-05,111900.0,111890.0,0.4510751]
[1760157397326,6.906e-05,111900.0,111890.0,0.8500751]
[1760157397529,6.906e-05,111900.0,111890.0,0.8510751]
[1760157399231,6.906e-05,111900.0,111890.0,0.8520751]
[1760157399629,6.906e-05,111900.0,111890.0,0.8510751]
[1760157399933,0.44217017,111900.0,111890.0,0.001]
[1760157400128,1.20297017,111900.0,111890.0,0.001]
[1760157400928,1.20297017,111900.0,111880.0,0.3608]
[1760157401129,0.80297017,111900.0,111890.0,0.001]
[1760157402032,0.71370307,111900.0,111890.0,0.001]
[1760157402331,0.80297017,111900.0,111890.0,0.001]
[1760157402533,0.80297017,111900.0,111880.0,0.4500787]
[1760157403631,0.71370307,111900.0,111880.0,0.3618]
[1760157403827,0.71370307,111900.0,111890.0,0.0892751]
[1760157404025,0.71370307,111900.0,111880.0,0.4510779]
[1760157404328,0.71370307,111900.0,111890.0,0.0892751]
[1760157404534,0.71370307,111900.0,111880.0,0.4510791]
[1760157405335,0.71370307,111900.0,111890.0,0.0892751]
[1760157405529,0.35290307,111900.0,111880.0,0.4510792]
[1760157405930,0.35290307,111900.0,111890.0,0.3608]
[1760157406130,0.35290307,111900.0,111880.0,0.4510792]
[1760157407626,0.44217037,111900.0,111880.0,0.4510792]
[1760157408137,0.44217037,111900.0,111880.0,0.3618]
[1760157408336,0.46668446,111900.0,111880.0,0.3618]
[1760157408630,0.46668786,111900.0,111880.0,0.3618]
[1760157408836,0.82748786,111900.0,111880.0,0.3618]
[1760157409836,0.0892751,111890.0,111880.0,0.001]
[1760157410036,0.11378919,111890.0,111880.0,0.001]
[1760157410638,0.42451409,111890.0,111880.0,0.001]
[1760157411033,0.42451409,111890.0,111880.0,0.3618]
[1760157412437,0.42451409,111890.0,111880.0,0.3608]
[1760157413340,0.42451409,111890.0,111870.0,0.4500909]
[1760157413540,0.02451409,111890.0,111870.0,0.4500909]
[1760157413939,0.82748816,111900.0,111870.0,0.4500909]
[1760157414537,0.82748816,111900.0,111880.0,0.3608]
[1760157415441,0.82748816,111900.0,111870.0,0.4500909]
[1760157415943,0.01295,111890.0,111870.0,0.4625509]
[1760157416137,0.03746409,111890.0,111870.0,0.4510909]
[1760157416336,0.36578401,111880.0,111870.0,0.3548]
[1760157416536,0.47965622,111880.0,111870.0,0.001]
[1760157416838,0.1012424,111870.0,111850.0,0.37226]
[1760157417037,0.01295,111860.0,111850.0,0.461567]
[1760157417238,9.989e-05,111860.0,111850.0,0.461567]
[1760157418239,9.989e-05,111860.0,111850.0,0.861567]
[1760157418543,0.36578401,111880.0,111870.0,0.00090011]
[1760157418744,0.39037715,111880.0,111870.0,0.00090011]
[1760157419133,0.39037715,111880.0,111860.0,0.4500983]
[1760157419342,0.47966065,111880.0,111860.0,0.4625583]
[1760157419835,0.37742715,111880.0,111870.0,0.4615511]
[1760157420039,0.02459314,111880.0,111870.0,0.4625511]
[1760157420542,0.03754314,111880.0,111870.0,0.4625511]
[1760157420744,0.12682624,111880.0,111870.0,0.001]
[1760157421039,0.03754314,111880.0,111870.0,0.001]
[1760157421237,0.03754314,111880.0,111870.0,0.3618]
[1760157421438,0.02459314,111880.0,111870.0,0.4635511]
[1760157421642,0.02459314,111880.0,111870.0,0.4625511]
[1760157421847,0.0892759,111890.0,111870.0,0.37326]
[1760157422140,0.35283401,111880.0,111870.0,0.37326]
[1760157422546,0.36578401,111880.0,111870.0,0.3608]
[1760157422742,0.45506711,111880.0,111860.0,0.3608]
[1760157422941,0.01295,111870.0,111860.0,0.37449]
[1760157423137,0.01295,111880.0,111860.0,0.463789]
[1760157423337,0.36578401,111880.0,111870.0,0.01369]
[1760157423544,0.36578401,111880.0,111860.0,0.463789]
[1760157423738,0.45506711,111880.0,111860.0,0.37449]
[1760157424042,0.45506711,111880.0,111860.0,0.01369]
[1760157424446,0.72658401,111880.0,111860.0,0.01369]
[1760157424641,0.01295,111860.0,111850.0,0.01146]
[1760157424946,0.36578401,111860.0,111840.0,0.37226]
[1760157425440,0.36578401,111860.0,111840.0,0.01146]
[1760157425441,0.36578401,111850.0,111840.0,0.01146]
[1760157425645,0.45509101,111850.0,111840.0,0.01146]
[1760157425845,0.36578401,111850.0,111840.0,0.01146]
[1760157426045,0.36578401,111850.0,111830.0,0.37459334]
[1760157426046,0.01295,111840.0,111830.0,0.37459334]
[1760157426349,0.41295,111840.0,111830.0,0.00010334]
[1760157426640,0.36578401,111850.0,111830.0,0.01379334]
[1760157426846,0.45509111,111850.0,111830.0,0.01379334]
[1760157427036,0.01295,111840.0,111830.0,0.36090334]
[1760157427243,0.102265,111840.0,111830.0,0.00010334]
[1760157427438,0.01295,111840.0,111830.0,0.00010334]
[1760157427846,0.01195,111840.0,111830.0,0.00010334]
[1760157428745,0.01195,111840.0,111830.0,0.00110334]
[1760157429148,0.101265,111840.0,111830.0,0.00110334]
[1760157429545,0.41563887,111840.0,111830.0,0.00110334]
[1760157429751,0.41563887,111840.0,111830.0,0.01479334]
[1760157430452,0.41563887,111840.0,111830.0,0.37559334]
[1760157430754,0.4630518,111860.0,111840.0,0.01369]
[1760157430953,0.41563887,111850.0,111840.0,0.37449]
[1760157431153,0.41563887,111850.0,111830.0,0.37559334]
[1760157431154,0.87869587,111850.0,111830.0,0.37559334]
[1760157431355,0.41563887,111840.0,111830.0,0.37559334]
[1760157431549,0.102257,111850.0,111830.0,0.37559334]
[1760157431854,0.4630526,111860.0,111840.0,0.01369]
[1760157432156,0.4630526,111860.0,111840.0,0.37549]
[1760157432351,0.089307,111850.0,111840.0,0.37549]
[1760157432556,0.4630522,111860.0,111840.0,0.37549]
[1760157432757,0.4630522,111860.0,111850.0,0.01369]
[1760157432961,0.78938887,111860.0,111850.0,0.01369]
[1760157433258,0.41563887,111860.0,111850.0,0.01369]
[1760157433651,0.4630463,111870.0,111850.0,0.01369]
[1760157433854,0.41563887,111860.0,111850.0,0.01369]
[1760157434054,0.43999376,111860.0,111850.0,0.01369]
[1760157434352,0.43999376,111860.0,111850.0,0.463797]
[1760157434656,0.02435489,111860.0,111850.0,0.37449]
[1760157434852,0.12659932,111870.0,111860.0,0.01369]
[1760157435153,0.089307,111850.0,111840.0,0.37449]
[1760157435358,0.102265,111840.0,111830.0,0.01379334]
[1760157435553,0.90305905,111840.0,111830.0,0.00010334]
[1760157435857,0.87870387,111840.0,111830.0,0.00010334]
[1760157436357,1.30305338,111840.0,111830.0,0.00010334]
[1760157437256,1.30305338,111840.0,111780.0,0.01369]
[1760157437257,0.1025981,111800.0,111780.0,0.01369]
[1760157437456,0.41563887,111790.0,111780.0,0.37449]
[1760157438055,0.41463887,111790.0,111780.0,0.4638529]
[1760157438254,0.50409529,111790.0,111780.0,0.01369]
[1760157438452,0.41474039,111790.0,111780.0,0.01369]
[1760157438648,0.51734529,111790.0,111770.0,0.37447]
[1760157438854,0.10270642,111790.0,111780.0,0.001]
[1760157439157,0.87914529,111790.0,111780.0,0.001]
[1760157440457,0.78979039,111790.0,111770.0,0.37547]
[1760157440655,0.41563887,111780.0,111770.0,0.37547]
[1760157441158,0.41563887,111780.0,111770.0,0.01367]
[1760157441359,0.42788887,111780.0,111760.0,0.37447]
[1760157441555,0.41572438,111770.0,111760.0,0.37447]
[1760157442454,8.551e-05,111770.0,111760.0,0.8638489]
[1760157442852,0.41563887,111800.0,111790.0,0.01367]
[1760157444258,0.41563887,111800.0,111790.0,0.37447]
[1760157444458,0.41563887,111800.0,111790.0,0.01367]
[1760157444860,0.50498587,111800.0,111790.0,0.01367]
[1760157445159,0.41563887,111800.0,111790.0,0.37447]
[1760157445358,0.41563887,111800.0,111790.0,0.01367]
[1760157445754,0.37405,111810.0,111790.0,0.37447]
[1760157445955,0.41563887,111810.0,111800.0,0.01367]
[1760157446157,0.41563887,111820.0,111810.0,0.01367]
[1760157446360,0.439906,111820.0,111810.0,0.01367]
[1760157446565,0.529237,111820.0,111810.0,0.01367]
[1760157446761,0.890037,111820.0,111810.0,0.01367]
[1760157446969,0.102589,111810.0,111790.0,0.37447]
[1760157447158,0.41563887,111800.0,111790.0,0.01367]
[1760157447364,0.50498587,111800.0,111790.0,0.01367]
[1760157448462,0.089355,111790.0,111780.0,0.37447]
[1760157448660,0.41563887,111790.0,111780.0,0.37447]
[1760157449067,0.41563887,111800.0,111790.0,0.01367]
[1760157449260,0.50498587,111800.0,111790.0,0.37447]
[1760157449462,0.50498587,111800.0,111780.0,0.37447]
[1760157449764,0.41563887,111790.0,111780.0,0.37447]
[1760157450165,0.50498587,111800.0,111790.0,0.01367]
[1760157450368,0.089355,111790.0,111780.0,0.37447]
[1760157450665,0.86579387,111790.0,111780.0,0.01367]
[1760157450867,0.41563887,111790.0,111780.0,0.01367]
[1760157451070,0.089355,111790.0,111780.0,0.01367]
[1760157451266,0.089355,111790.0,111780.0,0.41367]
[1760157451267,0.50499387,111790.0,111780.0,0.41367]
[1760157452266,0.41563887,111790.0,111780.0,0.41367]
[1760157452762,0.41563887,111790.0,111780.0,0.77447]
[1760157453465,0.41563887,111790.0,111780.0,0.41367]
[1760157453671,0.50499387,111790.0,111780.0,0.41367]
[1760157453871,0.0893506,111800.0,111790.0,0.01367]
[1760157454072,0.50498947,111800.0,111790.0,0.01367]
[1760157454274,0.86578307,111810.0,111800.0,0.01367]
[1760157454574,0.089347,111800.0,111790.0,0.01367]
[1760157454768,0.86578587,111800.0,111790.0,0.01367]
[1760157455166,0.089355,111790.0,111780.0,0.01367]
[1760157455463,0.50499387,111790.0,111780.0,0.01367]
[1760157455667,0.86579387,111790.0,111780.0,0.01367]
[1760157456068,0.50499387,111790.0,111780.0,0.01367]
[1760157456776,0.87903967,111800.0,111780.0,0.37447]
[1760157457076,0.02437925,111800.0,111790.0,0.37447]
[1760157457276,0.86577497,111820.0,111810.0,0.01367]
[1760157457481,0.52935268,111820.0,111810.0,0.01367]
[1760157458076,0.02438281,111820.0,111810.0,0.41367]
[1760157458373,0.4501261,111830.0,111820.0,0.01367]
[1760157458677,0.4745182,111830.0,111820.0,0.01367]
[1760157458976,0.089331,111820.0,111810.0,0.01367]
[1760157459276,0.52936197,111820.0,111810.0,0.01367]
[1760157460076,0.0243921,111820.0,111810.0,0.01367]
[1760157460274,0.86576587,111830.0,111820.0,0.01367]
[1760157460480,0.8901681,111830.0,111820.0,0.01367]
[1760157461676,0.089331,111820.0,111810.0,0.01367]
[1760157461980,0.5293721,111820.0,111810.0,0.01367]
[1760157462376,0.02440223,111820.0,111810.0,0.01367]
[1760157462574,0.89017365,111830.0,111820.0,0.01367]
[1760157462773,0.89017365,111830.0,111820.0,0.463801]
[1760157462774,0.02440768,111830.0,111820.0,0.463801]
[1760157463078,0.02440768,111830.0,111820.0,0.885491]
[1760157463272,0.02440768,111830.0,111820.0,0.895491]
[1760157463676,0.02440768,111830.0,111820.0,0.04536]
[1760157463871,0.02440768,111830.0,111820.0,0.03536]
[1760157464079,0.02440768,111830.0,111820.0,0.79616]
[1760157464273,0.02440768,111830.0,111820.0,0.885491]
[1760157464469,0.02440768,111830.0,111820.0,0.79616]
[1760157464672,0.11373068,111830.0,111820.0,0.03536]
[1760157464873,0.49698068,111830.0,111820.0,0.03536]
[1760157465577,0.11373068,111830.0,111820.0,0.39616]
[1760157465970,0.13618068,111830.0,111820.0,0.03536]
[1760157466176,0.49698068,111830.0,111820.0,0.03536]
[1760157466370,0.13618068,111830.0,111820.0,0.03536]
[1760157466570,0.49698068,111830.0,111820.0,0.03536]
[1760157466779,0.02440768,111830.0,111820.0,0.03536]
[1760157466975,0.02440768,111830.0,111820.0,0.39616]
[1760157467372,0.47453068,111830.0,111820.0,0.03536]
[1760157467674,0.49708068,111830.0,111820.0,0.02169]
[1760157467981,1.32632955,111830.0,111820.0,0.02169]
[1760157468176,1.32632955,111830.0,111810.0,0.01367]
[1760157468479,0.51069068,111830.0,111820.0,0.0231]
[1760157468670,0.51069068,111830.0,111820.0,0.03625]
[1760157468671,0.04695768,111830.0,111820.0,0.03625]
[1760157468877,0.02440768,111830.0,111820.0,0.03625]
[1760157469173,0.3608,111840.0,111820.0,0.79705]
[1760157469374,0.38484578,111840.0,111830.0,0.03625]
[1760157469582,0.02404578,111840.0,111830.0,0.39705]
[1760157470381,0.110335,111840.0,111830.0,0.03625]
[1760157470680,0.49516546,111840.0,111830.0,0.03625]
[1760157470874,0.49516546,111840.0,111830.0,0.03725]
[1760157472283,0.13436546,111840.0,111830.0,0.03725]
[1760157472678,0.13436546,111840.0,111830.0,0.03625]
[1760157472881,0.02403046,111840.0,111830.0,0.79705]
[1760157473279,0.36103,111850.0,111830.0,0.886373]
[1760157473475,0.38505796,111850.0,111840.0,0.03723]
[1760157473686,0.02425796,111850.0,111840.0,0.39803]
[1760157474382,0.04527796,111850.0,111840.0,0.39803]
[1760157474885,0.04527796,111850.0,111840.0,0.03723]
[1760157474886,0.02425796,111850.0,111840.0,0.03723]
[1760157476481,0.00023,111850.0,111840.0,0.887345]
[1760157476684,0.00023,111850.0,111840.0,0.79803]
[1760157478184,0.02125,111850.0,111840.0,0.39803]
[1760157478388,0.02125,111850.0,111840.0,0.03723]
[1760157479091,0.00023,111850.0,111840.0,0.79803]
[1760157479788,0.02125,111850.0,111840.0,0.79803]
[1760157480389,0.00023,111850.0,111840.0,0.79803]
[1760157480585,0.52619587,111850.0,111840.0,0.39803]
[1760157480790,0.53882587,111850.0,111840.0,0.02327]
[1760157480991,0.02125,111850.0,111840.0,0.03723]
[1760157481287,0.110557,111850.0,111840.0,0.03723]
[1760157481693,0.02125,111850.0,111840.0,0.03723]
[1760157482192,0.02125,111850.0,111840.0,0.39803]
[1760157482392,0.00023,111850.0,111840.0,0.39803]
[1760157482594,0.00023,111850.0,111840.0,0.487345]
[1760157483193,0.00023,111850.0,111840.0,0.887345]
[1760157483393,0.00023,111850.0,111840.0,0.79803]
[1760157483601,0.00023,111850.0,111840.0,0.887345]
[1760157484290,0.02125,111850.0,111840.0,0.79803]
[1760157484595,0.00023,111850.0,111840.0,0.79803]
[1760157485394,0.00023,111850.0,111840.0,0.887345]
[1760157486292,0.00023,111850.0,111840.0,0.79803]
[1760157486493,0.00023,111850.0,111840.0,0.526545]
[1760157486693,0.00023,111850.0,111840.0,0.887345]
[1760157487599,0.00023,111850.0,111840.0,0.79803]
[1760157488399,0.02125,111850.0,111840.0,0.79803]
[1760157488897,0.00023,111850.0,111840.0,0.79803]
[1760157489697,0.01263,111840.0,111820.0,0.37395]
[1760157489896,0.73545586,111830.0,111820.0,0.03723]
[1760157490095,0.38182,111830.0,111820.0,0.03723]
[1760157491498,0.02102,111830.0,111820.0,0.03823]
[1760157492399,0.02102,111830.0,111820.0,0.03723]
[1760157493299,0.4627491,111840.0,111820.0,0.03723]
[1760157493896,0.37343,111840.0,111820.0,0.1265603]
[1760157494595,0.3608,111840.0,111830.0,0.01396]
[1760157494796,0.38182,111840.0,111830.0,0.03723]
[1760157496207,0.02102,111840.0,111830.0,0.03723]
[1760157497297,0.523665,111840.0,111830.0,0.02327]
[1760157497502,0.884465,111840.0,111830.0,0.02327]
[1760157499105,0.02102,111840.0,111830.0,0.03654]
[1760157500198,0.110335,111840.0,111830.0,0.03654]
[1760157500607,0.123665,111840.0,111830.0,0.02327]
[1760157501011,0.123665,111840.0,111830.0,0.03654]
[1760157502109,0.484465,111840.0,111830.0,0.03654]
[1760157502802,0.02102,111840.0,111830.0,0.03654]
[1760157503206,0.110335,111840.0,111830.0,0.03654]
[1760157503604,0.123665,111840.0,111830.0,0.03654]
[1760157503807,0.110335,111840.0,111830.0,0.03654]
[1760157504007,0.02102,111840.0,111830.0,0.03654]
[1760157505107,0.02102,111840.0,111830.0,0.125863]
[1760157505809,0.02102,111840.0,111830.0,0.03654]
[1760157507103,0.03435,111840.0,111830.0,0.03654]
[1760157508010,0.123665,111840.0,111830.0,0.02327]
[1760157508310,0.123665,111840.0,111830.0,0.03654]
[1760157509512,0.123665,111840.0,111830.0,0.02327]
[1760157509710,0.484465,111840.0,111830.0,0.02327]
[1760157509908,0.123665,111840.0,111830.0,0.03654]
[1760157510305,0.484465,111840.0,111830.0,0.02327]
[1760157516616,0.39515,111840.0,111830.0,0.03654]
[1760157517017,0.484465,111840.0,111830.0,0.03654]
[1760157517917,0.484465,111840.0,111830.0,0.02327]
[1760157518718,0.484465,111840.0,111830.0,0.03654]
[1760157519621,0.39515,111840.0,111830.0,0.03654]
[1760157520420,0.38182,111840.0,111830.0,0.03654]
[1760157521720,0.471135,111840.0,111830.0,0.03654]
[1760157524215,0.484465,111840.0,111830.0,0.03654]
[1760157525123,0.471135,111840.0,111830.0,0.03654]
[1760157525523,0.484465,111840.0,111830.0,0.03654]
[1760157528018,0.484465,111840.0,111830.0,0.02327]
[1760157529519,0.123665,111840.0,111830.0,0.02327]
[1760157529828,0.484465,111840.0,111830.0,0.02327]
[1760157530427,0.50884692,111840.0,111830.0,0.02327]
[1760157532824,0.50884692,111840.0,111820.0,0.45013]
[1760157533025,0.50884692,111840.0,111820.0,0.47269]
[1760157533026,0.03563,111830.0,111820.0,0.47269]
[1760157534130,0.03563,111830.0,111820.0,0.02256]
[1760157534725,0.03563,111830.0,111820.0,0.111891]
[1760157535028,0.03563,111830.0,111820.0,0.02256]
[1760157535728,0.06002854,111830.0,111820.0,0.02256]
[1760157535928,0.03563,111830.0,111820.0,0.02256]
[1760157536926,0.03563,111830.0,111820.0,0.111891]
[1760157537327,0.06002697,111830.0,111820.0,0.472691]
[1760157537526,0.06002659,111830.0,111820.0,0.111891]
[1760157537724,0.03563,111830.0,111820.0,0.472691]
[1760157537926,0.03563,111830.0,111820.0,0.486051]
[1760157538531,0.03563,111830.0,111820.0,0.39672]
[1760157539926,0.03563,111830.0,111820.0,0.03592]
[1760157540127,0.03563,111830.0,111820.0,0.39672]
[1760157540323,0.03563,111830.0,111820.0,0.02256]
[1760157541230,0.124953,111830.0,111820.0,0.02256]
[1760157541530,0.485753,111830.0,111820.0,0.02256]
[1760157542126,0.03563,111830.0,111820.0,0.486051]
[1760157542322,0.03563,111830.0,111820.0,0.125251]
[1760157543028,0.03563,111830.0,111820.0,0.03592]
[1760157543332,0.03563,111830.0,111820.0,0.02256]
[1760157544633,0.03563,111830.0,111820.0,0.125251]
[1760157544832,0.02274,111830.0,111820.0,0.486051]
[1760157545229,0.38354,111840.0,111830.0,0.125243]
[1760157545538,0.00023,111850.0,111840.0,0.125235]
[1760157545736,0.00023,111850.0,111840.0,0.486035]
[1760157548238,0.00023,111850.0,111840.0,0.886035]
[1760157551136,0.02297,111850.0,111840.0,0.39672]
[1760157551440,0.02297,111850.0,111840.0,0.03592]
[1760157551741,0.00023,111850.0,111840.0,0.486035]
[1760157552541,0.00023,111850.0,111840.0,0.886035]
[1760157552743,0.81182933,111880.0,111870.0,0.03592]
[1760157553339,0.77619933,111880.0,111860.0,0.089298]
[1760157553840,0.41539933,111880.0,111860.0,0.4500947]
[1760157554041,0.86547633,111890.0,111860.0,0.4500947]
[1760157554343,0.001,111880.0,111860.0,0.4500947]
[1760157554638,0.001,111880.0,111860.0,0.4500949]
[1760157554837,0.86547453,111890.0,111860.0,0.4500949]
[1760157555038,0.77619933,111890.0,111870.0,0.3608]
[1760157556344,0.86547473,111890.0,111870.0,0.3608]
[1760157556640,0.86547473,111890.0,111840.0,0.41539933]
[1760157556641,0.86548253,111880.0,111850.0,0.4501042]
[1760157556838,0.3608,111870.0,111850.0,0.3608]
[1760157557042,0.77619933,111870.0,111850.0,0.3608]
[1760157557445,0.50469033,111870.0,111850.0,0.3608]
[1760157557745,0.86549033,111870.0,111850.0,0.3608]
[1760157558146,0.77619933,111860.0,111840.0,0.3608]
[1760157558437,0.77619933,111870.0,111840.0,0.4501145]
[1760157558636,0.77619933,111870.0,111850.0,0.4501064]
[1760157558838,0.41539933,111870.0,111850.0,0.4501064]
[1760157559038,0.3608,111880.0,111850.0,0.4501064]
[1760157559039,0.86548243,111880.0,111850.0,0.4501016]
[1760157561437,0.86548243,111880.0,111860.0,0.0892982]
[1760157561743,0.77619933,111880.0,111860.0,0.0892982]
[1760157565747,0.3608,111880.0,111860.0,0.0892982]
[1760157565948,0.77619933,111880.0,111860.0,0.0892982]
[1760157566444,0.77619933,111880.0,111860.0,0.0892929]
[1760157567752,0.86548363,111880.0,111860.0,0.0892929]
[1760157567940,0.86548363,111880.0,111850.0,0.4501026]
[1760157568145,0.86548363,111880.0,111850.0,0.5101026]
[1760157568346,0.41539933,111870.0,111850.0,0.5101026]
[1760157569047,0.86548363,111880.0,111860.0,0.0892981]
[1760157569241,0.77619933,111880.0,111860.0,0.4500981]
[1760157569446,0.41539933,111870.0,111850.0,0.4501039]
[1760157569749,0.41539933,111870.0,111850.0,0.3808]
[1760157569952,0.41539933,111870.0,111850.0,0.3608]
[1760157570245,0.3608,111870.0,111850.0,0.3608]
[1760157570440,0.77619933,111870.0,111850.0,0.3608]
[1760157570645,0.77619933,111870.0,111840.0,0.4501133]
[1760157570846,0.3608,111870.0,111840.0,0.4801133]
[1760157571044,0.77619933,111870.0,111840.0,0.4801133]
[1760157571246,0.77619933,111870.0,111850.0,0.3608]
[1760157572147,0.3608,111870.0,111850.0,0.3608]
[1760157572347,0.38552722,111870.0,111850.0,0.3608]
[1760157572547,0.80092655,111870.0,111850.0,0.3608]
[1760157573650,0.80092655,111870.0,111840.0,0.4501133]
[1760157573851,0.80092655,111870.0,111840.0,0.4901133]
[1760157574046,0.41539933,111860.0,111840.0,0.4008]
[1760157574244,0.4500939,111870.0,111840.0,0.4008]
[1760157574454,0.38541451,111870.0,111850.0,0.3608]
[1760157574650,0.80081384,111870.0,111850.0,0.3608]
[1760157574850,0.77619933,111870.0,111850.0,0.3608]
[1760157575351,0.80082415,111870.0,111850.0,0.3608]
[1760157577247,0.89011575,111870.0,111840.0,0.450114]
[1760157577556,0.89011575,111870.0,111840.0,0.3908]